fUSD/lending_fUSD_20260202
["ID","MTS","AMOUNT","RATE_DAILY","PERIOD"]
[404314191,1770055176739,-500.0,0.00043287,120]
[404314192,1770055176779,-500.0,0.00043287,120]
[404314193,1770055176822,-500.0,0.00043287,120]
[404314194,1770055176864,-511.37417981,0.00043287,120]
[404314195,1770055176907,-500.0,0.00043287,120]
[404314196,1770055176949,-500.0,0.00043287,120]
[404314197,1770055176993,-508.89568954,0.00043287,120]
[404314198,1770055177036,-500.0,0.00043287,120]
[404314199,1770055177077,-517.69274609,0.00043287,120]
[404314200,1770055177118,-500.0,0.00043287,120]
[404314201,1770055177161,-500.0,0.00043287,120]
[404314202,1770055177207,-500.0,0.00043287,120]
[404314203,1770055177258,-500.0,0.00043287,120]
[404314204,1770055177299,-500.0,0.00043287,120]
[404314205,1770055177342,-500.0,0.00043287,120]
[404314206,1770055177385,-525.53928519,0.00043287,120]
[404314207,1770055177430,-500.0,0.00043287,30]
[404314208,1770055177475,-500.0,0.00043287,30]
[404314209,1770055177516,-500.0,0.00043287,30]
[404314210,1770055177555,-500.0,0.00043287,30]
[404314211,1770055177594,-500.0,0.00043287,30]
[404314212,1770055177633,-500.0,0.00043287,30]
[404314213,1770055177673,-500.0,0.00043287,120]
[404314214,1770055177712,-500.0,0.00043287,120]
[404314215,1770055177750,-500.0,0.00043287,30]
[404314216,1770055177789,-500.0,0.00043287,120]
[404314217,1770055177828,-500.0,0.00043287,30]
[404314218,1770055177866,-500.0,0.00043287,120]
[404314219,1770055177905,-500.0,0.00043287,30]
[404314220,1770055177945,-500.0,0.00043287,120]
[404314221,1770055177984,-501.85279618,0.00043287,120]
[404314222,1770055178023,-500.0,0.00043287,120]
[404314223,1770055178063,-500.0,0.00043287,30]
[404314224,1770055178104,-500.0,0.00043287,120]
[404314225,1770055178148,-515.14902426,0.00043287,120]
[404314226,1770055178194,-500.0,0.00043287,30]
[404314227,1770055178236,-500.0,0.00043287,120]
[404314228,1770055178276,-500.0,0.00043287,30]
[404314229,1770055178316,-500.0,0.00043287,120]
[404314230,1770055178356,-500.0,0.00043287,30]
[404314231,1770055178397,-500.0,0.00043287,120]
[404314232,1770055178435,-500.0,0.00043287,30]
[404314233,1770055178473,-500.0,0.00043287,120]
[404314234,1770055178512,-510.94507663,0.00043287,30]
[404314235,1770055178552,-500.0,0.00043287,120]
[404314237,1770055178822,-500.0,0.00043287,120]
[404314238,1770055178869,-500.0,0.00043287,120]
[404314239,1770055178915,-501.15071654,0.00043287,120]
[404314240,1770055178957,-500.0,0.00043287,120]
[404314241,1770055178997,-500.0,0.00043287,120]
[404314242,1770055179038,-533.58687954,0.00043287,120]
[404314243,1770055179077,-500.0,0.00043287,120]
[404314244,1770055179116,-500.0,0.00043287,120]
[404314245,1770055179159,-500.0,0.00043287,120]
[404314246,1770055179202,-500.0,0.00043287,120]
[404314247,1770055179245,-500.0,0.00043287,120]
[404314248,1770055179286,-500.0,0.00043287,120]
[404314249,1770055179326,-441.91505185,0.00043287,120]
[404314250,1770055179367,-500.0,0.00043287,120]
[404314251,1770055179405,-500.0,0.00043287,120]
[404314252,1770055179445,-500.0,0.00043287,120]
[404314253,1770055179484,-505.40409179,0.00043287,120]
[404314254,1770055179527,-526.94326691,0.00043287,120]
[404314255,1770055179567,-510.37033723,0.00043287,120]
[404314256,1770055179606,-500.0,0.00043287,120]
[404314257,1770055179645,-500.0,0.00043287,120]
[404314258,1770055179682,-519.23600176,0.00043287,120]
[404314259,1770055179719,-500.0,0.00043287,120]
[404314260,1770055179759,-500.0,0.00043287,120]
[404314261,1770055179800,-511.93261301,0.00043287,120]
[404314262,1770055179838,-503.415147,0.00043287,120]
[404314263,1770055179877,-513.44419833,0.00043287,120]
[404314264,1770055179918,-210.40250643,0.00043287,120]
[404314265,1770055179960,-535.0476437,0.00043287,120]
[404314266,1770055180000,-511.09226853,0.00043287,120]
[404314267,1770055180041,-509.1584832,0.00043287,120]
[404314268,1770055180080,-500.0,0.00043287,120]
[404314269,1770055180119,-193.16176411,0.00043287,120]
[404314270,1770055180159,-500.0,0.00043287,120]
[404314271,1770055180199,-500.0,0.00043287,120]
[404314272,1770055180237,-501.59137998,0.00043287,120]
[404314273,1770055180274,-500.0,0.00043287,120]
[404314274,1770055180310,-530.88776583,0.00043287,120]
[404314275,1770055180346,-522.72236817,0.00043287,120]
[404314276,1770055180380,-518.65024778,0.00043287,120]
[404314277,1770055180417,-500.0,0.00043287,120]
[404314278,1770055180455,-500.0,0.00043287,120]
[404314279,1770055180493,-500.0,0.00043287,120]
[404314280,1770055180533,-519.13705642,0.00043287,120]
[404314281,1770055180570,-500.0,0.00043287,120]
[404314282,1770055180610,-500.0,0.00043287,120]
[404314283,1770055180651,-502.77112943,0.00043287,120]
[404314284,1770055180690,-503.82131258,0.00043287,120]
[404314285,1770055180729,-582.09605173,0.00043287,30]
[404314286,1770055180768,-500.0,0.00043287,120]
[404314287,1770055180807,-500.0,0.00043287,120]
[404314288,1770055180850,-524.80389327,0.00043287,120]
[404314289,1770055180888,-500.0,0.00043287,120]
[404314290,1770055180926,-500.0,0.00043287,120]
[404314291,1770055180964,-500.0,0.00043287,120]
[404314292,1770055181002,-500.0,0.00043287,120]
[404314293,1770055181040,-500.0,0.00043287,120]
[404314294,1770055181077,-500.0,0.00043287,120]
[404314295,1770055181115,-500.0,0.00043287,120]
[404314296,1770055181161,-500.0,0.00043287,120]
[404314297,1770055181203,-518.47908583,0.00043287,120]
[404314298,1770055181243,-504.7123596,0.00043287,120]
[404314299,1770055181281,-507.67939022,0.00043287,120]
[404314300,1770055181318,-530.10672218,0.00043287,120]
[404314301,1770055181356,-500.0,0.00043287,120]
[404314302,1770055181395,-520.2923573,0.00043287,120]
[404314303,1770055181436,-501.97949033,0.00043287,120]
[404314304,1770055181474,-614.90541169,0.00043287,120]
[404314305,1770055181513,-531.3277883,0.00043287,120]
[404314306,1770055181552,-518.86089576,0.00043287,120]
[404314307,1770055181590,-501.51687824,0.00043287,120]
[404314308,1770055181628,-534.82396277,0.00043287,120]
[404314309,1770055181666,-500.0,0.00043287,120]
[404314310,1770055181701,-500.0,0.00043287,120]
[404314311,1770055181737,-154.51439679,0.00043287,120]
[404314312,1770055181775,-512.79008936,0.00043287,120]
[404314313,1770055181812,-520.54894962,0.00043287,120]
[404314314,1770055181848,-500.0,0.00043287,120]
[404314315,1770055181884,-503.60320489,0.00043287,120]
[404314316,1770055181919,-500.0,0.00043287,120]
[404314317,1770055181955,-500.0,0.00043287,120]
[404314318,1770055181991,-500.0,0.00043287,120]
[404314319,1770055182029,-500.0,0.00043287,120]
[404314320,1770055182067,-500.0,0.00043287,120]
[404314321,1770055182107,-500.0,0.00043287,120]
[404314322,1770055182148,-503.59517421,0.00043287,120]
[404314323,1770055182188,-518.8843116,0.00043287,120]
[404314324,1770055182226,-508.84666811,0.00043287,120]
[404314325,1770055182262,-507.27299421,0.00043287,14]
[404314326,1770055182297,-514.36370547,0.00043287,120]
[404314327,1770055182332,-500.0,0.00043287,120]
[404314328,1770055182368,-500.0,0.00043287,120]
[404314329,1770055182404,-500.0,0.00043287,120]
[404314330,1770055182440,-500.0,0.00043287,120]
[404314331,1770055182478,-533.59818552,0.00043287,120]
[404314332,1770055182680,-500.0,0.00043287,120]
[404314333,1770055182721,-500.0,0.00043287,120]
[404314334,1770055182762,-500.0,0.00043287,120]
[404314335,1770055182801,-500.0,0.00043287,120]
[404314336,1770055182848,-500.0,0.00043287,120]
[404314337,1770055182896,-500.0,0.00043287,120]
[404314338,1770055182936,-500.0,0.00043287,120]
[404314339,1770055182974,-500.0,0.00043287,120]
[404314340,1770055183013,-500.0,0.00043287,120]
[404314341,1770055183051,-500.0,0.00043287,120]
[404314342,1770055183088,-500.0,0.00043287,120]
[404314343,1770055183128,-510.82232822,0.00043287,120]
[404314344,1770055183170,-500.0,0.00043287,120]
[404314345,1770055183212,-500.0,0.00043287,120]
[404314346,1770055183252,-523.66058491,0.00043287,120]
[404314347,1770055183289,-500.0,0.00043287,120]
[404314348,1770055183325,-517.69711383,0.00043287,120]
[404314349,1770055183362,-500.0,0.00043287,120]
[404314350,1770055183400,-500.0,0.00043287,120]
[404314351,1770055183440,-500.0,0.00043287,120]
[404314352,1770055183483,-500.0,0.00043287,120]
[404314353,1770055183526,-500.0,0.00043287,120]
[404314354,1770055183566,-500.0,0.00043287,120]
[404314355,1770055183609,-506.96469112,0.00043287,120]
[404314356,1770055183652,-500.0,0.00043287,120]
[404314357,1770055183693,-500.0,0.00043287,120]
[404314358,1770055183734,-500.0,0.00043287,120]
[404314359,1770055183774,-500.0,0.00043287,120]
[404314360,1770055183815,-500.0,0.00043287,120]
[404314361,1770055183858,-506.81188168,0.00043287,120]
[404314362,1770055183903,-500.0,0.00043287,120]
[404314363,1770055183951,-504.38852828,0.00043287,120]
[404314364,1770055184004,-500.0,0.00043287,120]
[404314365,1770055184053,-510.64074323,0.00043287,120]
[404314366,1770055184111,-500.0,0.00043287,120]
[404314367,1770055184158,-500.0,0.00043287,120]
[404314368,1770055184203,-500.0,0.00043287,120]
[404314369,1770055184243,-527.26707179,0.00043287,120]
[404314370,1770055184281,-562.58185832,0.00043287,120]
[404314371,1770055184319,-500.0,0.00043287,120]
[404314372,1770055184358,-500.0,0.00043287,120]
[404314373,1770055184401,-500.0,0.00043287,120]
[404314374,1770055184446,-500.0,0.00043287,120]
[404314375,1770055184491,-514.76770506,0.00043287,120]
[404314376,1770055184544,-500.0,0.00043287,120]
[404314377,1770055184611,-500.0,0.00043287,120]
[404314378,1770055184654,-500.0,0.00043287,120]
[404314379,1770055184693,-501.10042735,0.00043287,120]
[404314380,1770055184729,-500.0,0.00043287,120]
[404314381,1770055184771,-545.41393121,0.00043287,120]
[404314382,1770055184811,-500.0,0.00043287,120]
[404314383,1770055184851,-500.0,0.00043287,120]
[404314384,1770055184891,-500.0,0.00043287,120]
[404314385,1770055184935,-504.48367657,0.00043287,120]
[404314386,1770055184978,-542.28871231,0.00043287,60]
[404314387,1770055185024,-500.0,0.00043287,120]
[404314388,1770055185066,-506.89866638,0.00043287,120]
[404314389,1770055185111,-529.39299295,0.00043287,120]
[404314390,1770055185161,-501.22351566,0.00043287,120]
[404314391,1770055185208,-507.57994438,0.00043287,120]
[404314392,1770055185251,-500.0,0.00043287,120]
[404314393,1770055185293,-500.0,0.00043287,120]
[404314394,1770055185334,-500.0,0.00043287,120]
[404314395,1770055185377,-511.00180901,0.00043287,120]
[404314396,1770055185420,-500.0,0.00043287,120]
[404314397,1770055185462,-500.0,0.00043287,120]
[404314398,1770055185503,-500.0,0.00043287,120]
[404314399,1770055185545,-564.38713412,0.00043287,120]
[404314400,1770055185589,-500.0,0.00043287,120]
[404314401,1770055185630,-500.0,0.00043287,120]
[404314402,1770055185670,-500.0,0.00043287,120]
[404314403,1770055185708,-177.26934576,0.00043287,120]
[404314404,1770055185745,-509.33100356,0.00043287,120]
[404314405,1770055185787,-500.0,0.00043287,120]
[404314406,1770055185830,-500.0,0.00043287,120]
[404314407,1770055185869,-500.0,0.00043287,120]
[404314408,1770055185911,-500.0,0.00043287,120]
[404314409,1770055185951,-500.0,0.00043287,120]
[404314410,1770055185992,-536.34893751,0.00043287,14]
[404314411,1770055186036,-500.0,0.00043287,120]
[404314412,1770055186081,-166.17299802,0.00043287,120]
[404314413,1770055186125,-500.0,0.00043287,120]
[404314414,1770055186167,-500.0,0.00043287,120]
[404314415,1770055186212,-572.24458542,0.00043287,120]
[404314416,1770055186255,-539.36535863,0.00043287,120]
[404314417,1770055186297,-521.03387011,0.00043287,120]
[404314418,1770055186339,-500.0,0.00043287,120]
[404314419,1770055186379,-500.0,0.00043287,120]
[404314420,1770055186418,-502.35307204,0.00043287,120]
[404314421,1770055186458,-500.0,0.00043287,120]
[404314422,1770055186496,-363.20513496,0.00043287,120]
[404314423,1770055186537,-518.19862076,0.00043287,120]
[404314424,1770055186580,-500.0,0.00043287,120]
[404314425,1770055186622,-500.0,0.00043287,120]
[404314426,1770055186662,-500.0,0.00043287,120]
[404314427,1770055186873,-498.08006067,0.00043287,120]
[404314428,1770055186919,-500.0,0.00043287,120]
[404314429,1770055186966,-500.0,0.00043287,120]
[404314430,1770055187011,-500.0,0.00043287,120]
[404314431,1770055187056,-503.92116683,0.00043287,120]
[404314432,1770055187102,-500.0,0.00043287,120]
[404314433,1770055187158,-500.0,0.00043287,120]
[404314434,1770055187204,-525.082118,0.00043287,120]
[404314435,1770055187249,-500.0,0.00043287,120]
[404314436,1770055187292,-569.72524411,0.00043287,120]
[404314437,1770055187336,-500.17697635,0.00043287,120]
[404314438,1770055187378,-507.75218707,0.00043287,120]
[404314439,1770055187421,-502.94581282,0.00043287,120]
[404314440,1770055187464,-500.0,0.00043287,120]
[404314441,1770055187507,-516.3290588,0.00043287,120]
[404314442,1770055187552,-510.54536205,0.00043287,120]
[404314443,1770055187596,-509.64666762,0.00043287,120]
[404314444,1770055187640,-500.0,0.00043287,120]
[404314445,1770055187685,-582.16533224,0.00043287,120]
[404314446,1770055187731,-507.29998173,0.00043287,120]
[404314447,1770055187773,-500.0,0.00043287,120]
[404314448,1770055187814,-500.0,0.00043287,120]
[404314449,1770055187855,-500.0,0.00043287,120]
[404314450,1770055187896,-577.61384058,0.00043287,120]
[404314451,1770055187935,-520.67734393,0.00043287,120]
[404314452,1770055187974,-500.0,0.00043287,120]
[404314453,1770055188011,-500.0,0.00043287,120]
[404314454,1770055188049,-500.0,0.00043287,120]
[404314455,1770055188088,-500.0,0.00043287,120]
[404314456,1770055188130,-500.0,0.00043287,120]
[404314457,1770055188169,-500.0,0.00043287,120]
[404314458,1770055188207,-500.0,0.00043287,120]
[404314459,1770055188246,-508.47368356,0.00043287,120]
[404314460,1770055188283,-503.19640425,0.00043287,120]
[404314461,1770055188319,-500.0,0.00043287,120]
[404314462,1770055188359,-382.16434644,0.00043287,120]
[404314463,1770055188399,-500.0,0.00043287,120]
[404314464,1770055188440,-618.05590717,0.00043287,120]
[404314465,1770055188484,-500.0,0.00043287,120]
[404314466,1770055188526,-500.0,0.00043287,120]
[404314467,1770055188566,-500.0,0.00043287,120]
[404314468,1770055188607,-500.0,0.00043287,120]
[404314469,1770055188647,-500.0,0.00043287,120]
[404314470,1770055188683,-500.0,0.00043287,120]
[404314471,1770055188722,-502.76365461,0.00043287,120]
[404314472,1770055188760,-500.0,0.00043287,120]
[404314473,1770055188799,-478.07718561,0.00043287,120]
[404314474,1770055188836,-500.0,0.00043287,120]
[404314475,1770055188872,-500.0,0.00043287,120]
[404314476,1770055188910,-500.0,0.00043287,120]
[404314477,1770055188948,-500.0,0.00043287,120]
[404314478,1770055188987,-500.0,0.00043287,120]
[404314479,1770055189023,-500.0,0.00043287,120]
[404314480,1770055189059,-378.49779997,0.00043287,120]
[404314481,1770055189098,-500.0,0.00043287,120]
[404314482,1770055189137,-500.0,0.00043287,120]
[404314483,1770055189178,-500.0,0.00043287,120]
[404314484,1770055189219,-500.0,0.00043287,120]
[404314485,1770055189256,-500.0,0.00043287,120]
[404314486,1770055189292,-493.07387427,0.00043287,120]
[404314487,1770055189327,-500.0,0.00043287,120]
[404314488,1770055189364,-519.32846169,0.00043287,120]
[404314489,1770055189402,-500.0,0.00043287,120]
[404314490,1770055189439,-514.81896025,0.00043287,120]
[404314491,1770055189475,-500.0,0.00043287,120]
[404314492,1770055189513,-500.0,0.00043287,120]
[404314493,1770055189551,-500.0,0.00043287,120]
[404314494,1770055189587,-500.0,0.00043287,120]
[404314495,1770055189623,-632.16985982,0.00043287,120]
[404314496,1770055189662,-500.0,0.00043287,120]
[404314497,1770055189698,-500.0,0.00043287,120]
[404314498,1770055189734,-500.0,0.00043287,120]
[404314499,1770055189771,-500.0,0.00043287,120]
[404314500,1770055189811,-500.0,0.00043287,120]
[404314501,1770055189850,-500.0,0.00043287,120]
[404314502,1770055189889,-517.61204136,0.00043287,120]
[404314503,1770055189928,-500.0,0.00043287,120]
[404314504,1770055189968,-533.85207674,0.00043287,120]
[404314505,1770055190007,-500.0,0.00043287,120]
[404314506,1770055190046,-509.74793093,0.00043287,120]
[404314507,1770055190082,-500.0,0.00043287,120]
[404314508,1770055190119,-500.0,0.00043287,120]
[404314509,1770055190154,-500.0,0.00043287,120]
[404314510,1770055190191,-500.0,0.00043287,120]
[404314511,1770055190228,-555.23542393,0.00043287,120]
[404314512,1770055190264,-500.0,0.00043287,120]
[404314513,1770055190304,-500.0,0.00043287,120]
[404314514,1770055190344,-500.0,0.00043287,120]
[404314515,1770055190381,-500.0,0.00043287,120]
[404314516,1770055190420,-500.0,0.00043287,120]
[404314517,1770055190461,-500.0,0.00043287,120]
[404314518,1770055190502,-500.0,0.00043287,120]
[404314519,1770055190547,-545.14,0.00043287,120]
[404314520,1770055190587,-500.0,0.00043287,120]
[404314521,1770055190627,-500.0,0.00043287,120]
[404314522,1770055190666,-500.0,0.00043287,120]
[404314523,1770055190873,-545.14,0.00043287,120]
[404314524,1770055190919,-500.0,0.00043287,120]
[404314525,1770055190960,-505.86229504,0.00043287,120]
[404314526,1770055191002,-545.14,0.00043287,120]
[404314527,1770055191043,-528.56872684,0.00043287,120]
[404314528,1770055191084,-500.0,0.00043287,120]
[404314529,1770055191124,-545.14,0.00043287,120]
[404314530,1770055191168,-500.0,0.00043287,120]
[404314531,1770055191210,-545.14,0.00043287,120]
[404314532,1770055191253,-500.0,0.00043287,120]
[404314533,1770055191295,-545.14,0.00043287,120]
[404314534,1770055191334,-500.0,0.00043287,120]
[404314535,1770055191373,-545.14,0.00043287,120]
[404314536,1770055191413,-500.0,0.00043287,120]
[404314537,1770055191453,-545.14,0.00043287,120]
[404314538,1770055191492,-500.0,0.00043287,120]
[404314539,1770055191530,-545.14,0.00043287,120]
[404314540,1770055191567,-500.0,0.00043287,120]
[404314541,1770055191605,-545.14,0.00043287,120]
[404314542,1770055191644,-500.0,0.00043287,120]
[404314543,1770055191684,-504.27035788,0.00043287,120]
[404314544,1770055191730,-545.14,0.00043287,120]
[404314545,1770055191772,-500.0,0.00043287,120]
[404314546,1770055191812,-545.14,0.00043287,120]
[404314547,1770055191852,-500.0,0.00043287,120]
[404314548,1770055191889,-545.14,0.00043287,120]
[404314549,1770055191929,-500.0,0.00043287,120]
[404314550,1770055191969,-545.14,0.00043287,120]
[404314551,1770055192009,-500.0,0.00043287,120]
[404314552,1770055192049,-545.14,0.00043287,120]
[404314553,1770055192092,-500.0,0.00043287,120]
[404314554,1770055192133,-500.0,0.00043287,120]
[404314555,1770055192171,-545.14,0.00043287,120]
[404314556,1770055192211,-500.0,0.00043287,120]
[404314557,1770055192249,-500.0,0.00043287,120]
[404314558,1770055192287,-545.14,0.00043287,120]
[404314559,1770055192325,-500.0,0.00043287,120]
[404314560,1770055192363,-500.0,0.00043287,120]
[404314561,1770055192407,-545.14,0.00043287,120]
[404314562,1770055192447,-500.0,0.00043287,120]
[404314563,1770055192488,-500.0,0.00043287,120]
[404314564,1770055192527,-522.97394569,0.00043287,120]
[404314565,1770055192567,-545.14,0.00043287,120]
[404314566,1770055192611,-500.0,0.00043287,120]
[404314567,1770055192652,-500.0,0.00043287,120]
[404314568,1770055192692,-545.14,0.00043287,120]
[404314569,1770055192733,-500.0,0.00043287,120]
[404314570,1770055192777,-500.0,0.00043287,120]
[404314571,1770055192818,-545.14,0.00043287,120]
[404314572,1770055192856,-522.11904531,0.00043287,120]
[404314573,1770055192893,-500.0,0.00043287,120]
[404314574,1770055192932,-545.14,0.00043287,120]
[404314575,1770055192969,-500.0,0.00043287,120]
[404314576,1770055193008,-545.14,0.00043287,120]
[404314577,1770055193048,-500.0,0.00043287,120]
[404314578,1770055193093,-545.34597692,0.00043287,120]
[404314579,1770055193150,-369.05220279,0.00043287,120]
[404314580,1770055193200,-500.0,0.00043287,120]
[404314581,1770055193245,-500.0,0.00043287,120]
[404314582,1770055193291,-512.83684911,0.00043287,120]
[404314583,1770055193336,-500.0,0.00043287,120]
[404314584,1770055193381,-500.0,0.00043287,120]
[404314585,1770055193426,-525.57177846,0.00043287,120]
[404314586,1770055193473,-500.0,0.00043287,120]
[404314587,1770055193518,-500.0,0.00043287,120]
[404314588,1770055193562,-500.0,0.00043287,120]
[404314589,1770055193606,-500.0,0.00043287,120]
[404314590,1770055193650,-500.0,0.00043287,120]
[404314591,1770055193694,-500.0,0.00043287,120]
[404314592,1770055193735,-500.0,0.00043287,120]
[404314593,1770055193779,-500.0,0.00043287,120]
[404314594,1770055193822,-500.0,0.00043287,120]
[404314595,1770055193864,-498.53440158,0.00043287,120]
[404314596,1770055193904,-508.93084908,0.00043287,120]
[404314597,1770055193947,-502.41647979,0.00043287,120]
[404314598,1770055193992,-500.0,0.00043287,120]
[404314599,1770055194039,-515.42567297,0.00043287,120]
[404314600,1770055194086,-563.16041577,0.00043287,120]
[404314601,1770055194131,-500.0,0.00043287,120]
[404314602,1770055194176,-500.0,0.00043287,120]
[404314603,1770055194219,-502.58618474,0.00043287,120]
[404314604,1770055194264,-500.0,0.00043287,120]
[404314605,1770055194312,-517.90552502,0.00043287,120]
[404314606,1770055194357,-506.79269335,0.00043287,120]
[404314607,1770055194398,-539.3048357,0.00043287,60]
[404314608,1770055194438,-500.0,0.00043287,120]
[404314609,1770055194477,-500.0,0.00043287,120]
[404314610,1770055194517,-500.0,0.00043287,120]
[404314611,1770055194557,-500.0,0.00043287,120]
[404314612,1770055194595,-500.0,0.00043287,120]
[404314613,1770055194635,-514.58893333,0.00043287,120]
[404314614,1770055194673,-500.0,0.00043287,120]
[404314615,1770055194713,-500.0,0.00043287,120]
[404314617,1770055194752,-503.8941538,0.00043287,120]
[404314618,1770055194791,-500.0,0.00043287,120]
[404314619,1770055195029,-165.11596843,0.00043287,120]
[404314620,1770055195076,-500.0,0.00043287,120]
[404314621,1770055195120,-529.34376434,0.00043287,120]
[404314622,1770055195164,-500.0,0.00043287,120]
[404314624,1770055195208,-500.0,0.00043287,120]
[404314625,1770055195255,-500.0,0.00043287,120]
[404314626,1770055195301,-500.0,0.00043287,120]
[404314627,1770055195346,-500.0,0.00043287,120]
[404314628,1770055195390,-500.0,0.00043287,120]
[404314629,1770055195434,-500.0,0.00043287,120]
[404314630,1770055195478,-500.0,0.00043287,120]
[404314631,1770055195523,-500.0,0.00043287,120]
[404314632,1770055195568,-500.0,0.00043287,120]
[404314634,1770055195613,-500.0,0.00043287,120]
[404314635,1770055195657,-635.33997558,0.00043287,120]
[404314636,1770055195700,-500.0,0.00043287,120]
[404314637,1770055195745,-500.0,0.00043287,120]
[404314638,1770055195792,-500.0,0.00043287,120]
[404314639,1770055195838,-509.32227413,0.00043287,120]
[404314640,1770055195878,-301.18692736,0.00043287,120]
[404314641,1770055195926,-500.0,0.00043287,120]
[404314642,1770055195972,-500.0,0.00043287,120]
[404314644,1770055196021,-504.31391984,0.00043287,120]
[404314645,1770055196069,-500.0,0.00043287,120]
[404314646,1770055196113,-500.0,0.00043287,120]
[404314647,1770055196155,-500.0,0.00043287,120]
[404314648,1770055196196,-223.71715892,0.00043287,120]
[404314649,1770055196240,-500.0,0.00043287,120]
[404314650,1770055196289,-500.0,0.00043287,120]
[404314651,1770055196336,-500.0,0.00043287,120]
[404314652,1770055196388,-500.0,0.00043287,120]
[404314654,1770055196439,-500.0,0.00043287,120]
[404314655,1770055196486,-500.0,0.00043287,120]
[404314656,1770055196526,-500.0,0.00043287,120]
[404314657,1770055196566,-508.82213198,0.00043287,120]
[404314658,1770055196606,-500.0,0.00043287,120]
[404314659,1770055196645,-500.0,0.00043287,120]
[404314660,1770055196687,-500.0,0.00043287,120]
[404314661,1770055196728,-500.0,0.00043287,120]
[404314662,1770055196767,-500.0,0.00043287,120]
[404314664,1770055196806,-500.0,0.00043287,120]
[404314665,1770055196843,-500.0,0.00043287,120]
[404314666,1770055196883,-500.0,0.00043287,120]
[404314667,1770055196921,-500.0,0.00043287,120]
[404314668,1770055196960,-536.9009672,0.00043287,120]
[404314669,1770055196997,-500.0,0.00043287,120]
[404314670,1770055197035,-500.0,0.00043287,120]
[404314671,1770055197072,-500.0,0.00043287,120]
[404314672,1770055197111,-500.0,0.00043287,120]
[404314673,1770055197151,-512.90964389,0.00043287,120]
[404314674,1770055197192,-607.01885029,0.00043287,120]
[404314675,1770055197231,-501.36694468,0.00043287,60]
[404314676,1770055197272,-500.0,0.00043287,120]
[404314677,1770055197312,-506.01461989,0.00043287,120]
[404314678,1770055197351,-500.0,0.00043287,120]
[404314679,1770055197390,-500.0,0.00043287,120]
[404314680,1770055197429,-500.0,0.00043287,120]
[404314681,1770055197468,-500.0,0.00043287,120]
[404314682,1770055197506,-500.0,0.00043287,120]
[404314683,1770055197550,-507.98388388,0.00043287,120]
[404314684,1770055197587,-500.0,0.00043287,120]
[404314685,1770055197626,-500.0,0.00043287,120]
[404314686,1770055197665,-503.93230129,0.00043287,120]
[404314687,1770055197702,-523.70885987,0.00043287,120]
[404314688,1770055197739,-500.0,0.00043287,120]
[404314689,1770055197778,-518.70090066,0.00043287,120]
[404314690,1770055197814,-500.0,0.00043287,120]
[404314691,1770055197850,-518.07569458,0.00043287,120]
[404314692,1770055197888,-500.0,0.00043287,120]
[404314693,1770055197924,-500.0,0.00043287,120]
[404314694,1770055197961,-500.0,0.00043287,120]
[404314695,1770055198000,-517.65324426,0.00043287,120]
[404314696,1770055198040,-500.0,0.00043287,120]
[404314697,1770055198077,-516.58308974,0.00043287,120]